fUST/lending_fUST_20240223
["ID","MTS","AMOUNT","RATE_DAILY","PERIOD"]
[314920766,1708648244844,-6702.14,0.00019178,2]
[314920767,1708648244852,-506.604493,0.00019178,2]
[314920768,1708648244861,-776.92,0.00019178,2]
[314920769,1708648244870,-500.0,0.00019178,2]
[314920770,1708648244879,-500.0,0.00019178,2]
[314920771,1708648244888,-1374.97,0.00019178,2]
[314920772,1708648244897,-500.0,0.00019178,2]
[314920773,1708648244906,-2897.61,0.00019178,2]
[314920774,1708648244914,-151.0,0.00019178,2]
[314920775,1708648244924,-170.663657,0.00019178,2]
[314920776,1708648244933,-189.961746,0.00019178,2]
[314920777,1708648244942,-166.666666,0.00019178,2]
[314920778,1708648244951,-408.83456308,0.00019215,2]
[314920779,1708648244960,-5008.8994679,0.00019351,2]
[314920786,1708648246139,-151.0,0.00019178,2]
[314920787,1708648246148,-151.0,0.00019178,2]
[314920788,1708648246157,-247.959788,0.00019178,2]
[314920789,1708648246166,-527.636112,0.00019178,2]
[314920793,1708648693593,385.0,0.00015,2]
[314920841,1708649434936,-155.05426899,0.00017325,2]
[314920843,1708649434946,-1914.63044736,0.00017326,2]
[314920845,1708649434958,-570.40712865,0.00017326,2]
[314920847,1708649434967,-1456.8751199,0.00017327,2]
[314920849,1708649434976,-241.0125324,0.00017489,2]
[314920851,1708649434986,-155.05426899,0.00017585,2]
[314920853,1708649434995,-3922.2922933,0.00017589,2]
[314920855,1708649435007,-159.896641,0.00017743,2]
[314920857,1708649435016,-149.81284445,0.00017969,2]
[314920859,1708649435028,-123.29210055,0.00017969,2]
[314920861,1708649435038,-595.71080532,0.000189,2]
[314920863,1708649435047,-245.30073788,0.00019078,2]
[314920865,1708649435056,-1916.3701188,0.00019168,2]
[314920867,1708649435065,-300.0,0.00019177,2]
[314920869,1708649435074,-4468.17747328,0.00019178,2]
[314920871,1708649435084,-500.0,0.00019178,2]
[314920873,1708649435093,-500.0,0.00019178,2]
[314920875,1708649435103,-500.0,0.00019178,2]
[314920877,1708649435112,-814.97,0.00019178,2]
[314920879,1708649435122,-500.0,0.00019178,2]
[314920881,1708649435131,-500.0,0.00019178,2]
[314920883,1708649435140,-217.97421679,0.00019178,2]
[314920924,1708649440380,-282.02578321,0.00019178,2]
[314920925,1708649440391,-500.0,0.00019178,2]
[314920926,1708649440401,-500.0,0.00019178,2]
[314920927,1708649440410,-421.51247218,0.00019178,2]
[314920928,1708649440425,-78.48752782,0.00019178,2]
[314920929,1708649440434,-500.0,0.00019178,2]
[314920930,1708649440443,-24.64147314,0.00019178,2]
[314920931,1708649440465,-1376.23852686,0.00019178,2]
[314920932,1708649440474,-145.38491177,0.00019178,2]
[314920933,1708649440485,-260.29428997,0.00019178,2]
[314920934,1708649440497,-94.32079826,0.00019178,2]
[314920935,1708649440506,-911.87983728,0.00019178,2]
[314920936,1708649440518,-54.86016272,0.00019178,2]
[314920937,1708649440527,-500.0,0.00019178,2]
[314920938,1708649440537,-129.52807601,0.00019178,2]
[314920942,1708649441579,-426.87618559,0.00019178,2]
[314920943,1708649441589,-664.21,0.00019178,2]
[314920944,1708649441599,-453.01,0.00019178,2]
[314920945,1708649441609,-500.0,0.00019178,2]
[314920946,1708649441618,-414.99823831,0.00019178,2]
[314920947,1708649441630,-500.0,0.00019178,2]
[314920948,1708649441639,-500.0,0.00019178,2]
[314920949,1708649441649,-1618.22,0.00019178,2]
[314920950,1708649441658,-500.0,0.00019178,2]
[314920951,1708649441667,-736.78,0.00019178,2]
[314920952,1708649441676,-1500.4,0.00019178,2]
[314920953,1708649441685,-2776.88,0.00019178,2]
[314920954,1708649441694,-208.15,0.00019178,2]
[314920955,1708649441703,-4794.43394381,0.00019178,2]
[314920974,1708650237140,9000.0,0.0003,120]
[314920975,1708650262672,1127.1,0.0003,120]
[314921008,1708650641772,-427.63664462,0.00017449,2]
[314921009,1708650641784,-263.82582174,0.00017449,2]
[314921010,1708650641793,-258.515138,0.0001745,2]
[314921011,1708650641803,-155.05426899,0.00017599,2]
[314921012,1708650641813,-1843.97597786,0.00017599,2]
[314921013,1708650641823,-382.89121651,0.000176,2]
[314921015,1708650641832,-3061.8133355,0.00017701,2]
[314921016,1708650641842,-300.0,0.0001793,2]
[314921017,1708650641851,-24900.0,0.00017931,2]
[314921018,1708650641861,-159.896641,0.00018296,2]
[314921019,1708650641870,-662.68098525,0.00018844,2]
[314921020,1708650641879,-306.0,0.000189,2]
[314921021,1708650641889,-345.1691635,0.00018998,2]
[314921022,1708650641898,-153.0,0.00019,2]
[314921023,1708650641908,-153.0,0.00019,2]
[314921024,1708650641917,-153.0,0.00019,2]
[314921025,1708650641927,-153.0,0.00019,2]
[314921026,1708650641938,-196.24059028,0.00019078,2]
[314921027,1708650641948,-500.0,0.00019178,2]
[314921028,1708650641959,-291.90679789,0.00019178,2]
[314921029,1708650641969,-636.54,0.00019178,2]
[314921030,1708650641982,-500.0,0.00019178,2]
[314921031,1708650641993,-500.0,0.00019178,2]
[314921032,1708650642004,-500.0,0.00019178,2]
[314921033,1708650642014,-500.0,0.00019178,2]
[314921034,1708650642024,-500.0,0.00019178,2]
[314921035,1708650642033,-957.95,0.00019178,2]
[314921036,1708650642042,-500.0,0.00019178,2]
[314921037,1708650642052,-500.0,0.00019178,2]
[314921038,1708650642061,-500.0,0.00019178,2]
[314921039,1708650642069,-500.0,0.00019178,2]
[314921040,1708650642078,-500.0,0.00019178,2]
[314921041,1708650642090,-500.0,0.00019178,2]
[314921042,1708650642099,-598.59,0.00019178,2]
[314921043,1708650642109,-500.0,0.00019178,2]
[314921044,1708650642120,-500.0,0.00019178,2]
[314921045,1708650642130,-414.28704644,0.00019178,2]
[314921046,1708650642141,-563.15,0.00019178,2]
[314921047,1708650642152,-500.0,0.00019178,2]
[314921048,1708650642162,-500.0,0.00019178,2]
[314921049,1708650642171,-1003.98081195,0.00019178,2]
[314921056,1708650646577,-1843.97597786,0.00017448,2]
[314921057,1708650646587,-546.81918805,0.00019178,2]
[314921058,1708650646596,-706.08,0.00019178,2]
[314921059,1708650646606,-352.48833486,0.00019178,2]
[314921060,1708650646616,-500.0,0.00019178,2]
[314921061,1708650646626,-1437.88,0.00019178,2]
[314921062,1708650646635,-500.0,0.00019178,2]
[314921063,1708650646644,-500.0,0.00019178,2]
[314921064,1708650646653,-500.0,0.00019178,2]
[314921065,1708650646662,-377.92,0.00019178,2]
[314921066,1708650646672,-500.0,0.00019178,2]
[314921067,1708650646681,-500.0,0.00019178,2]
[314921068,1708650646691,-500.0,0.00019178,2]
[314921069,1708650646700,-1245.1,0.00019178,2]
[314921070,1708650646709,-781.01,0.00019178,2]
[314921071,1708650646718,-500.0,0.00019178,2]
[314921072,1708650646727,-500.0,0.00019178,2]
[314921073,1708650646736,-500.0,0.00019178,2]
[314921074,1708650646744,-254.41198716,0.00019178,2]
[314921075,1708650646753,-500.0,0.00019178,2]
[314921076,1708650646762,-1147.45,0.00019178,2]
[314921077,1708650646771,-1030.22,0.00019178,2]
[314921078,1708650646779,-500.0,0.00019178,2]
[314921079,1708650646789,-500.0,0.00019178,2]
[314921080,1708650646797,-500.0,0.00019178,2]
[314921081,1708650646806,-500.0,0.00019178,2]
[314921082,1708650646815,-1679.06,0.00019178,2]
[314921083,1708650646824,-500.0,0.00019178,2]
[314921084,1708650646833,-941.3,0.00019178,2]
[314921085,1708650646842,-6209.82,0.00019178,2]
[314921086,1708650646851,-500.0,0.00019178,2]
[314921087,1708650646859,-1123.1,0.00019178,2]
[314921088,1708650646868,-1829.93,0.00019178,2]
[314921089,1708650646878,-500.0,0.00019178,2]
[314921090,1708650646886,-500.0,0.00019178,2]
[314921091,1708650646895,-500.0,0.00019178,2]
[314921092,1708650646904,-500.0,0.00019178,2]
[314921093,1708650646913,-1483.85,0.00019178,2]
[314921094,1708650646922,-500.0,0.00019178,2]
[314921095,1708650646930,-500.0,0.00019178,2]
[314921096,1708650646939,-10900.69,0.00019178,2]
[314921097,1708650646948,-500.0,0.00019178,2]
[314921098,1708650646957,-500.0,0.00019178,2]
[314921099,1708650646966,-500.0,0.00019178,2]
[314921100,1708650646974,-500.0,0.00019178,2]
[314921101,1708650646983,-88.27070121,0.00019178,2]
[314921107,1708651676370,25550.0,0.0003,120]
[314921155,1708651832769,-6086.1898846,0.00017547,2]
[314921156,1708651832779,-1297.80662223,0.00017581,2]
[314921157,1708651832788,-691.46246636,0.00017582,2]
[314921158,1708651832798,-24900.0,0.00017587,2]
[314921159,1708651832808,-834.9164538,0.00017648,2]
[314921160,1708651832818,-227.568312,0.00017732,2]
[314921161,1708651832827,-163.83177483,0.00017984,2]
[314921162,1708651832837,-9100.4578186,0.00018084,2]
[314921163,1708651832846,-156.99247224,0.00019078,2]
[314921164,1708651832855,-156.99247221,0.00019147,2]
[314921165,1708651832865,-468.82059928,0.00019178,2]
[314921166,1708651832874,-500.0,0.00019178,2]
[314921167,1708651832883,-573.65,0.00019178,2]
[314921168,1708651832893,-500.0,0.00019178,2]
[314921169,1708651832902,-500.0,0.00019178,2]
[314921170,1708651832911,-500.0,0.00019178,2]
[314921171,1708651832920,-500.0,0.00019178,2]
[314921172,1708651832930,-500.0,0.00019178,2]
[314921173,1708651832939,-442.61023454,0.00019178,2]
[314921174,1708651832949,-151.0,0.00019178,2]
[314921175,1708651832958,-500.0,0.00019178,2]
[314921176,1708651832967,-500.0,0.00019178,2]
[314921177,1708651832976,-500.0,0.00019178,2]
[314921178,1708651832985,-500.0,0.00019178,2]
[314921179,1708651832995,-918.04,0.00019178,2]
[314921180,1708651833004,-862.91,0.00019178,2]
[314921181,1708651833013,-500.0,0.00019178,2]
[314921182,1708651833022,-500.0,0.00019178,2]
[314921183,1708651833031,-380.90353411,0.00019178,2]
[314921184,1708651833041,-500.0,0.00019178,2]
[314921185,1708651833050,-595.38595986,0.00019178,2]
[314921186,1708651833059,-276.460408,0.00019178,2]
[314921187,1708651833068,-500.0,0.00019178,2]
[314921188,1708651833077,-500.0,0.00019178,2]
[314921189,1708651833086,-1486.18,0.00019178,2]
[314921190,1708651833096,-676.66,0.00019178,2]
[314921191,1708651833105,-500.0,0.00019178,2]
[314921192,1708651833114,-1377.97,0.00019178,2]
[314921193,1708651833244,-500.0,0.00019178,2]
[314921194,1708651833254,-151.0,0.00019178,2]
[314921195,1708651833263,-151.0,0.00019178,2]
[314921196,1708651833272,-151.0,0.00019178,2]
[314921197,1708651833281,-151.0,0.00019178,2]
[314921198,1708651833290,-151.0,0.00019178,2]
[314921199,1708651833299,-151.0,0.00019178,2]
[314921200,1708651833308,-500.0,0.00019178,2]
[314921201,1708651833317,-500.0,0.00019178,2]
[314921202,1708651833326,-500.0,0.00019178,2]
[314921203,1708651833335,-1219.92,0.00019178,2]
[314921204,1708651833346,-500.0,0.00019178,2]
[314921205,1708651833356,-1169.16,0.00019178,2]
[314921206,1708651833365,-1267.36,0.00019178,2]
[314921207,1708651833374,-1127.6,0.00019178,2]
[314921208,1708651833383,-500.0,0.00019178,2]
[314921209,1708651833393,-1753.68,0.00019178,2]
[314921210,1708651833402,-500.0,0.00019178,2]
[314921211,1708651833410,-1609.09,0.00019178,2]
[314921212,1708651833419,-90.75355082,0.00019178,2]
[314921216,1708651838676,-506.48176332,0.00019178,2]
[314921217,1708651838770,-499.89468586,0.00019178,2]
[314921218,1708651838781,-902.08,0.00019178,2]
[314921219,1708651838790,-320.15082201,0.00019178,2]
[314921221,1708651843667,-179.84917799,0.00019178,2]
[314921222,1708651843677,-2112.15082201,0.00019178,2]
[314921223,1708651843692,-500.0,0.00019178,2]
[314921224,1708651843722,-3338.92917799,0.00019178,2]
[314921225,1708651843731,-500.0,0.00019178,2]
[314921226,1708651843741,-367.62,0.00019178,2]
[314921227,1708651843751,-1475.1,0.00019178,2]
[314921228,1708651843760,-1931.51,0.00019178,2]
[314921230,1708651843769,-10446.49,0.00019178,2]
[314921231,1708651843778,-411.72929879,0.00019178,2]
[314921232,1708651843789,-473.86253275,0.00019178,2]
[314921233,1708651843798,-289.51818628,0.00019178,2]
[314921234,1708651843807,-334.07619026,0.00019178,2]
[314921235,1708651843815,-500.0,0.00019178,2]
[314921236,1708651843825,-500.0,0.00019178,2]
[314921237,1708651843834,-500.0,0.00019178,2]
[314921238,1708651843843,-1787.6,0.00019178,2]
[314921239,1708651843851,-500.0,0.00019178,2]
[314921240,1708651843860,-500.0,0.00019178,2]
[314921241,1708651843869,-623.1,0.00019178,2]
[314921242,1708651843879,-773.0,0.00019178,2]
[314921243,1708651843887,-500.0,0.00019178,2]
[314921244,1708651843897,-533.9,0.00019178,2]
[314921245,1708651843906,-500.0,0.00019178,2]
[314921246,1708651843915,-500.0,0.00019178,2]
[314921247,1708651843925,-1074.82,0.00019178,2]
[314921248,1708651843934,-500.0,0.00019178,2]
[314921249,1708651843943,-610.02,0.00019178,2]
[314921250,1708651843952,-1107.67,0.00019178,2]
[314921251,1708651843961,-500.0,0.00019178,2]
[314921252,1708651843970,-6425.97,0.00019178,2]
[314921253,1708651843979,-3962.49,0.00019178,2]
[314921254,1708651843988,-5769.75,0.00019178,2]
[314921255,1708651843997,-1343.32,0.00019178,2]
[314921256,1708651844006,-559.40281713,0.00019178,2]
[314921257,1708651844015,-2662.66,0.00019178,2]
[314921258,1708651844024,-745.16,0.00019178,2]
[314921259,1708651844033,-500.0,0.00019178,2]
[314921260,1708651844041,-1215.25,0.00019178,2]
[314921261,1708651844050,-189.961746,0.00019178,2]
[314921262,1708651844059,-171.7204956,0.00019178,2]
[314921263,1708651844068,-170.663657,0.00019178,2]
[314921264,1708651844077,-166.666666,0.00019178,2]
[314921265,1708651844086,-156.99247221,0.00019215,2]
[314921266,1708651844095,-156.99247221,0.00019284,2]
[314921267,1708651844104,-400.694443,0.00019342,2]
[314921268,1708651844113,-156.99247221,0.00019352,2]
[314921269,1708651844121,-6586.18476742,0.00019352,2]
[314921270,1708651844130,-25395.68,0.00019442,3]
[314921271,1708651844139,-170.20237174,0.0001945,2]
[314921272,1708651844150,-960.71148446,0.0001945,2]
[314921273,1708651844158,-500.0,0.00019451,2]
[314921274,1708651844167,-500.0,0.00019451,2]
[314921275,1708651844176,-500.0,0.00019451,2]
[314921276,1708651844185,-500.0,0.00019451,2]
[314921277,1708651844193,-500.0,0.00019451,2]
[314921278,1708651844202,-160.2314764,0.00019451,2]
[314921279,1708651844211,-151.0,0.00019451,2]
[314921280,1708651844219,-500.0,0.00019452,2]
[314921281,1708651844228,-573.65,0.00019452,2]
[314921282,1708651844236,-163.95785735,0.00019452,2]
[314921283,1708651844245,-500.0,0.00019452,2]
[314921284,1708651844254,-500.0,0.00019452,2]
[314921285,1708651844263,-186.64,0.00019452,2]
[314921287,1708651844272,-500.0,0.00019452,2]
[314921289,1708651844281,-918.04,0.00019452,2]
[314921290,1708651844290,-862.91,0.00019452,2]
[314921292,1708651844299,-499.94,0.00019452,2]
[314921293,1708651844308,-500.0,0.00019452,2]
[314921294,1708651844316,-500.0,0.00019452,2]
[314921295,1708651844325,-500.0,0.00019452,2]
[314921296,1708651844342,-1486.18,0.00019452,2]
[314921297,1708651844355,-676.66,0.00019452,2]
[314921298,1708651844364,-1377.97,0.00019452,2]
[314921299,1708651844373,-151.0,0.00019452,2]
[314921300,1708651844382,-151.0,0.00019452,2]
[314921301,1708651844392,-155.089036,0.00019452,2]
[314921302,1708651844402,-500.0,0.00019452,2]
[314921303,1708651844411,-500.0,0.00019452,2]
[314921304,1708651844421,-272.45,0.00019452,2]
[314921305,1708651844430,-1219.92,0.00019452,2]
[314921306,1708651844440,-1169.16,0.00019452,2]
[314921307,1708651844449,-1127.6,0.00019452,2]
[314921308,1708651844459,-500.0,0.00019452,2]
[314921309,1708651844469,-1753.68,0.00019452,2]
[314921310,1708651844478,-500.0,0.00019452,2]
[314921311,1708651844488,-1609.09,0.00019452,2]
[314921312,1708651844498,-1097.13,0.00019452,2]
[314921313,1708651844507,-902.08,0.00019452,2]
[314921314,1708651844516,-5951.08,0.00019452,2]
[314921315,1708651844525,-248.63207936,0.00019452,2]
[314921316,1708651844556,-171.16792064,0.00019452,2]
[314921317,1708651844566,-1475.1,0.00019452,2]
[314921318,1708651844576,-1931.51,0.00019452,2]
[314921319,1708651844586,-10009.30662082,0.00019452,2]
[314921320,1708651844598,-437.18337918,0.00019452,2]
[314921321,1708651844607,-500.0,0.00019452,2]
[314921322,1708651844617,-260.20294561,0.00019452,2]
[314921323,1708651844626,-1787.6,0.00019452,2]
[314921324,1708651844636,-500.0,0.00019452,2]
[314921325,1708651844647,-623.1,0.00019452,2]
[314921326,1708651844656,-773.0,0.00019452,2]
[314921327,1708651844666,-500.0,0.00019452,2]
[314921328,1708651844675,-533.9,0.00019452,2]
[314921329,1708651844685,-500.0,0.00019452,2]
[314921330,1708651844695,-500.0,0.00019452,2]
[314921331,1708651844704,-1074.82,0.00019452,2]
[314921332,1708651844717,-610.02,0.00019452,2]
[314921333,1708651844727,-840.03062789,0.00019452,2]
[314921334,1708651844746,-267.63937211,0.00019452,2]
[314921335,1708651844758,-3716.26062789,0.00019452,2]
[314921336,1708651844769,-297.91664767,0.00019452,2]
[314921348,1708652094359,750.0,0.000165,2]
[314921350,1708652122749,5601.79064671,0.000165,2]
[314921363,1708652929377,220.09402847,0.000202,6]
[314921448,1708653037818,-500.0,0.00016499,2]
[314921449,1708653037831,-191.53793725,0.00016499,2]
[314921450,1708653037842,-1054.57231855,0.00016499,2]
[314921451,1708653037879,-2125.42768145,0.00016499,2]
[314921452,1708653037889,-3951.5653458,0.000165,2]
[314921461,1708653041109,-8699.32410058,0.000165,2]
[314921462,1708653041119,-404.11711519,0.00017877,2]
[314921463,1708653041131,-4670.61469471,0.00017877,2]
[314921464,1708653041140,-227.568312,0.00018044,2]
[314921465,1708653041150,-625.32424504,0.00018797,2]
[314921466,1708653041160,-937.07938987,0.000189,2]
[314921467,1708653041169,-757.71,0.00019168,3]
[314921468,1708653041178,-155.39485274,0.00019177,2]
[314921469,1708653041188,-203.06452668,0.00019178,2]
[314921470,1708653041199,-296.93547332,0.00019178,2]
[314921471,1708653041209,-151.57392806,0.00019178,2]
[314921472,1708653041218,-39.00706842,0.00019178,2]
[314921473,1708653041229,-462.33355712,0.00019178,2]
[314921474,1708653041239,-500.79938785,0.00019178,2]
[314921475,1708653041247,-501.58133274,0.00019178,2]
[314921476,1708653041257,-502.15746347,0.00019178,2]
[314921477,1708653041266,-500.0,0.00019178,2]
[314921478,1708653041275,-80.23242126,0.00019178,2]
[314921479,1708653041286,-827.03757874,0.00019178,2]
[314921480,1708653041295,-500.0,0.00019178,2]
[314921481,1708653041304,-501.86685405,0.00019178,2]
[314921482,1708653041313,-500.0,0.00019178,2]
[314921483,1708653041322,-501.05973244,0.00019178,2]
[314921484,1708653041331,-502.70054947,0.00019178,2]
[314921485,1708653041340,-1001.32609982,0.00019178,2]
[314921486,1708653041350,-501.17151884,0.00019178,2]
[314921487,1708653041359,-500.93556605,0.00019178,2]
[314921488,1708653041369,-512.4302087,0.00019178,2]
[314921489,1708653041378,-501.60115911,0.00019178,2]
[314921490,1708653041388,-501.63019213,0.00019178,2]
[314921491,1708653041396,-556.32197445,0.00019178,2]
[314921492,1708653041406,-501.69956782,0.00019178,2]
[314921493,1708653041415,-502.06052859,0.00019178,2]
[314921494,1708653041424,-265.49794504,0.00019178,2]
[314921495,1708653041434,-500.0,0.00019178,2]
[314921496,1708653041444,-1287.35,0.00019178,2]
[314921497,1708653041453,-500.0,0.00019178,2]
[314921498,1708653041462,-500.0,0.00019178,2]
[314921499,1708653041471,-841.81,0.00019178,2]
[314921500,1708653041481,-500.0,0.00019178,2]
[314921501,1708653041490,-177.13643025,0.00019178,2]
[314921502,1708653041499,-500.0,0.00019178,2]
[314921503,1708653041509,-559.66,0.00019178,2]
[314921504,1708653041518,-502.76466731,0.00019178,2]
[314921505,1708653041527,-501.651893,0.00019178,2]
[314921506,1708653041536,-1362.33,0.00019178,2]
[314921507,1708653041546,-295.01737671,0.00019178,2]
[314921508,1708653041555,-620.82,0.00019178,2]
[314921509,1708653041564,-501.64163409,0.00019178,2]
[314921510,1708653041572,-1264.13,0.00019178,2]
[314921511,1708653041582,-500.0,0.00019178,2]
[314921512,1708653041591,-500.0,0.00019178,2]
[314921513,1708653041600,-151.0,0.00019178,2]
[314921514,1708653041609,-558.93924452,0.00019178,2]
[314921515,1708653041619,-500.0,0.00019178,2]
[314921516,1708653041628,-527.35720046,0.00019178,2]
[314921517,1708653041637,-172.72810314,0.00019178,2]
[314921518,1708653041646,-377.18953935,0.00019178,2]
[314921519,1708653041662,-124.22988721,0.00019178,2]
[314921520,1708653041671,-1164.61,0.00019178,2]
[314921521,1708653041680,-500.80876029,0.00019178,2]
[314921522,1708653041689,-588.82175092,0.00019178,2]
[314921523,1708653041699,-993.1,0.00019178,2]
[314921524,1708653041707,-501.41506988,0.00019178,2]
[314921525,1708653041717,-500.0,0.00019178,2]
[314921526,1708653041726,-1118.42,0.00019178,2]
[314921527,1708653041735,-572.99045851,0.00019178,2]
[314921528,1708653041744,-451.31749047,0.00019178,2]
[314921529,1708653041753,-1226.89,0.00019178,2]
[314921530,1708653041762,-503.09999972,0.00019178,2]
[314921531,1708653041771,-500.87898682,0.00019178,2]
[314921532,1708653041780,-1522.84,0.00019178,2]
[314921533,1708653041790,-501.93216859,0.00019178,2]
[314921534,1708653041799,-1247.67,0.00019178,2]
[314921535,1708653041809,-502.03328094,0.00019178,2]
[314921536,1708653041818,-500.0,0.00019178,2]
[314921537,1708653041828,-504.90748354,0.00019178,2]
[314921538,1708653041837,-263.21390171,0.00019178,2]
[314921539,1708653041850,-238.74713015,0.00019178,2]
[314921540,1708653041859,-164.78640005,0.00019178,2]
[314921541,1708653041872,-336.22112921,0.00019178,2]
[314921542,1708653041881,-26.46336901,0.00019178,2]
[314921548,1708653045033,-376.43,0.00019178,2]
[314921549,1708653045094,-98.65658508,0.00019178,2]
[314921550,1708653045103,-500.0,0.00019178,2]
[314921551,1708653045113,-582.27503237,0.00019178,2]
[314921552,1708653045123,-500.0,0.00019178,2]
[314921553,1708653045132,-501.62713327,0.00019178,2]
[314921554,1708653045142,-1445.94,0.00019178,2]
[314921555,1708653045152,-1007.24,0.00019178,2]
[314921556,1708653045162,-501.57235247,0.00019178,2]
[314921557,1708653045171,-1875.59,0.00019178,2]
[314921558,1708653045180,-501.4759261,0.00019178,2]
[314921559,1708653045190,-549.76851294,0.00019178,2]
[314921560,1708653045199,-502.97562093,0.00019178,2]
[314921561,1708653045208,-500.76477568,0.00019178,2]
[314921562,1708653045217,-7715.1107057,0.00019178,2]
[314921566,1708653045940,-1189.14690157,0.00019178,2]
[314921567,1708653046003,-1005.13239273,0.00019178,2]
[314921568,1708653046013,-372.35743663,0.00019178,2]
[314921569,1708653046023,-503.12558992,0.00019178,2]
[314921570,1708653046032,-1693.62,0.00019178,2]
[314921571,1708653046042,-501.88927041,0.00019178,2]
[314921572,1708653046055,-500.0,0.00019178,2]
[314921573,1708653046064,-647.92,0.00019178,2]
[314921574,1708653046073,-501.50215624,0.00019178,2]
[314921575,1708653046186,-1607.56,0.00019178,2]
[314921576,1708653046196,-500.77913034,0.00019178,2]
[314921577,1708653046205,-502.54203325,0.00019178,2]
[314921578,1708653046213,-5797.29,0.00019178,2]
[314921579,1708653046222,-592.32,0.00019178,2]
[314921580,1708653046231,-500.50285428,0.00019178,2]
[314921581,1708653046239,-163.38541595,0.00019178,2]
[314921582,1708653046331,-338.33781452,0.00019178,2]
[314921583,1708653046340,-75.61629047,0.00019178,2]
[314921587,1708653452863,1483.88737317,0.0003,120]
[314921693,1708654241398,-639.93763963,0.00017585,2]
[314921696,1708654241412,-691.53793725,0.00017586,2]
[314921698,1708654241422,-860.5760692,0.00017594,2]
[314921700,1708654241433,-996.28439946,0.00017594,2]
[314921797,1708654243176,-56765.83523614,0.00017594,2]
[314921817,1708654246159,-37420.54061134,0.00017594,2]
[314921819,1708654246169,-14477.97892,0.00017595,2]
[314921821,1708654246178,-157.14284784,0.000176,2]
[314921823,1708654246188,-300.0,0.00017774,2]
[314921825,1708654246197,-300.0,0.00017955,2]
[314921827,1708654246206,-300.0,0.00018136,2]
[314921828,1708654246215,-300.0,0.00018316,2]
[314921830,1708654246224,-300.0,0.00018497,2]
[314921832,1708654246234,-300.0,0.00018678,2]
[314921834,1708654246244,-300.0,0.00018859,2]
[314921835,1708654246253,-337.99571908,0.00019,2]
[314921836,1708654246263,-300.0,0.0001904,2]
[314921837,1708654246272,-729.28545956,0.00019176,2]
[314921838,1708654246281,-500.0,0.00019178,2]
[314921839,1708654246290,-154.42169642,0.00019178,2]
[314921840,1708654246299,-536.34,0.00019178,2]
[314921841,1708654246309,-389.95777435,0.00019178,2]
[314921842,1708654246318,-500.0,0.00019178,2]
[314921843,1708654246327,-500.0,0.00019178,2]
[314921844,1708654246337,-806.73,0.00019178,2]
[314921845,1708654246346,-500.0,0.00019178,2]
[314921846,1708654246355,-500.0,0.00019178,2]
[314921847,1708654246364,-385.53666515,0.00019178,2]
[314921848,1708654246374,-620.93,0.00019178,2]
[314921849,1708654246383,-501.99579356,0.00019178,2]
[314921850,1708654246392,-501.4254347,0.00019178,2]
[314921851,1708654246404,-1305.57,0.00019178,2]
[314921852,1708654246415,-500.82917094,0.00019178,2]
[314921853,1708654246425,-500.99224609,0.00019178,2]
[314921854,1708654246435,-594.95,0.00019178,2]
[314921855,1708654246445,-501.42864761,0.00019178,2]
[314921856,1708654246455,-501.92681975,0.00019178,2]
[314921857,1708654246465,-500.86081447,0.00019178,2]
[314921858,1708654246474,-1211.46,0.00019178,2]
[314921859,1708654246483,-501.06199445,0.00019178,2]
[314921860,1708654246494,-500.0,0.00019178,2]
[314921861,1708654246503,-491.2919225,0.00019178,2]